bitfinex/quotes_ETHUSD_20260313
["timestamp","ask_amount","ask_price","bid_price","bid_amount"]
[1773415275666,6.00713024,2163.8,2163.0,2.80576998]
[1773415276461,4.62128615,2163.9,2163.0,1.65]
[1773415276666,7.16245165,2164.0,2162.8,11.05847176]
[1773415276841,7.16245165,2164.0,2162.7,1.155909]
[1773415276842,2.59763941,2163.9,2162.7,1.155909]
[1773415277041,2.59763941,2163.9,2162.7,7.59083439]
[1773415277261,1.15532141,2164.0,2162.7,7.59083439]
[1773415277966,1.15532141,2164.0,2163.0,6.43492539]
[1773415278343,1.15532141,2164.0,2163.2,6.43492539]
[1773415279373,4.62126474,2164.1,2163.2,6.43492539]
[1773415280145,4.62126474,2164.1,2163.2,7.59061807]
[1773415281343,1.15510788,2164.3,2163.2,7.59061807]
[1773415282463,0.002,2163.8,2163.3,1.65]
[1773415282648,0.002,2163.8,2163.4,5.85093612]
[1773415282844,0.002,2164.0,2163.4,5.85093612]
[1773415283274,5.8983465,2163.7,2162.4,2.80610176]
[1773415283473,2.69083157,2163.7,2162.4,1.65]
[1773415283664,6.04783149,2163.6,2162.4,1.65]
[1773415284375,5.8983465,2163.4,2162.3,1.65]
[1773415284552,5.8983465,2163.2,2161.6,7.00748682]
[1773415284748,5.8983465,2163.2,2161.7,1.65]
[1773415284956,5.8983465,2163.2,2161.8,0.04625774]
[1773415285479,5.8983465,2163.0,2161.8,1.20267771]
[1773415285648,5.8983465,2163.0,2161.8,1.15641997]
[1773415285848,5.8983465,2163.0,2161.7,1.65]
[1773415286289,5.8983465,2162.7,2161.6,1.65]
[1773415286483,5.8983465,2162.7,2161.2,5.85093612]
[1773415286654,5.8983465,2162.7,2161.4,1.65]
[1773415286856,5.8983465,2162.7,2161.5,0.04626416]
[1773415287284,5.8983465,2162.7,2161.4,1.65]
[1773415287593,5.8983465,2162.5,2161.5,0.04626416]
[1773415288106,5.8983465,2162.5,2161.4,1.65]
[1773415288624,5.8983465,2162.3,2161.0,0.001]
[1773415288787,5.8983465,2161.9,2161.0,0.001]
[1773415289004,5.8983465,2161.8,2161.0,0.001]
[1773415289282,5.8983465,2161.8,2160.8,0.001]
[1773415289461,5.8983465,2161.6,2160.8,0.001]
[1773415289980,1.1564972,2161.7,2160.8,5.85193612]
[1773415290185,1.1564972,2161.7,2160.9,0.046277]
[1773415290383,10.52257676,2162.6,2161.2,5.85093612]
[1773415290686,4.62423026,2162.6,2161.4,5.85093612]
[1773415290881,4.62423026,2162.6,2161.6,5.85093612]
[1773415291063,10.52257676,2162.6,2161.2,5.85093612]
[1773415291265,10.52257676,2162.6,2161.3,1.65]
[1773415291464,10.52257676,2162.6,2161.4,7.00759384]
[1773415291789,4.62423026,2162.6,2161.4,7.00759384]
[1773415292156,1.1560159,2162.6,2161.5,5.85093612]
[1773415292390,1.1560159,2162.6,2161.6,0.04626202]
[1773415293178,1.15585556,2162.9,2161.6,5.85093612]
[1773415293386,1.15585556,2162.9,2161.7,7.00743332]
[1773415293603,1.15564184,2163.3,2162.1,5.85093612]
[1773415293808,1.1554282,2163.7,2162.5,5.85093612]
[1773415294102,4.62143346,2163.9,2162.8,5.85093612]
[1773415294302,4.62143346,2163.9,2162.9,1.649]
[1773415294972,0.31159304,2164.0,2162.9,7.49993612]
[1773415295297,0.002,2163.8,2162.9,7.49993612]
[1773415295496,0.002,2163.8,2163.0,1.15580212]
[1773415296665,0.002,2163.8,2163.1,1.649]
[1773415297471,0.002,2163.8,2163.2,1.15569526]
[1773415298290,0.002,2163.8,2163.2,7.00663138]
[1773415298782,1.15727288,2164.0,2163.2,7.00663138]
[1773415299994,0.002,2164.0,2163.2,7.00663138]
[1773415300206,0.002,2164.0,2163.2,5.85093612]
[1773415300365,0.002,2164.0,2163.2,1.648]
[1773415300694,5.9003465,2164.0,2162.8,1.648]
[1773415300883,5.8983465,2163.8,2162.8,1.648]
[1773415301194,2.55887448,2163.9,2162.3,11.25729223]
[1773415301195,5.8983465,2163.6,2162.3,11.25729223]
[1773415301491,2.55887448,2163.9,2162.4,5.89718103]
[1773415301492,5.8983465,2163.8,2162.4,5.89718103]
[1773415301913,0.002,2164.0,2162.4,5.89718103]
[1773415302195,0.002,2164.0,2163.0,1.15580212]
[1773415302494,5.9003465,2164.0,2163.1,1.648]
[1773415302797,5.9003465,2164.0,2162.7,1.648]
[1773415303306,5.9003465,2164.0,2162.8,0.04623636]
[1773415303473,5.9003465,2164.0,2162.6,1.648]
[1773415303474,5.8983465,2163.8,2162.6,1.648]
[1773415303800,5.8983465,2163.8,2162.7,0.04623849]
[1773415303997,5.8983465,2163.8,2162.4,0.04624491]
[1773415304302,7.0537747,2163.7,2162.4,1.20233318]
[1773415304793,7.0537747,2163.7,2162.4,0.04624491]
[1773415304984,5.91911834,2163.5,2162.2,0.06080403]
[1773415305183,5.91911834,2163.5,2162.3,0.04624705]
[1773415305564,5.91911834,2163.5,2162.3,6.52217825]
[1773415305969,5.91911834,2163.5,2162.4,1.648]
[1773415306194,1.15558842,2163.4,2162.5,1.15606936]
[1773415306503,1.15558842,2163.4,2162.5,0.04624277]
[1773415306804,4.62149921,2163.9,2162.9,6.4759312]
[1773415306968,1.15532141,2163.9,2163.0,6.52216328]
[1773415307299,1.15532141,2163.9,2163.1,8.1239312]
[1773415307502,0.002,2164.0,2163.2,6.52215901]
[1773415307670,1.15727892,2164.0,2163.2,6.52215901]
[1773415307871,11.15727892,2164.0,2163.2,6.52215901]
[1773415308069,4.62243217,2164.3,2163.2,6.52215901]
[1773415308070,1.15516594,2164.2,2163.2,6.52215901]
[1773415308273,0.002,2164.3,2163.3,7.63157304]
[1773415308702,0.002,2164.3,2163.3,7.67779871]
[1773415308872,0.002,2163.8,2163.5,6.4759312]
[1773415309078,0.002,2164.3,2163.5,6.4759312]
[1773415309601,0.002,2164.1,2163.5,6.4759312]
[1773415309984,0.002,2164.1,2163.5,1.647]
[1773415310501,0.002,2164.1,2163.5,2.77936639]
[1773415311072,0.002,2164.1,2163.5,2.82563057]
[1773415311276,0.002,2164.1,2163.5,2.77940606]
[1773415311473,0.002,2164.1,2163.5,1.52699512]
[1773415311676,0.002,2164.1,2162.7,0.04516127]
[1773415311677,6.43873018,2164.1,2162.7,0.04516127]
[1773415311899,6.43673018,2163.9,2162.6,1.15601162]
[1773415312110,6.43673018,2163.7,2162.7,0.04623849]
[1773415312273,1.1554816,2163.6,2162.5,1.20231031]
[1773415313280,1.1554816,2163.6,2162.5,7.35928439]
[1773415314122,1.1554816,2163.6,2162.5,6.20321685]
[1773415314415,7.59221178,2163.6,2162.6,1.647]
[1773415314883,7.59221178,2163.6,2162.1,9.92741449]
[1773415315090,7.59221178,2163.6,2162.1,11.57441449]
[1773415317214,6.43673018,2163.2,2162.1,1.647]
[1773415317507,6.43673018,2163.2,2162.1,2.8032819]
[1773415317710,6.43673018,2163.2,2162.1,8.96025598]
[1773415317884,6.58621517,2163.5,2162.1,8.96025598]
[1773415319696,7.5923186,2163.4,2162.1,8.96025598]
[1773415320006,7.5923186,2163.4,2162.1,7.80397408]
[1773415320186,6.43673018,2163.2,2162.1,8.96024566]
[1773415320713,7.59221178,2163.6,2162.3,2.58279421]
[1773415320894,6.43673018,2163.4,2162.3,1.648]
[1773415321289,6.43673018,2163.4,2162.4,0.04435055]
[1773415321506,1.1554816,2163.6,2162.4,6.20132463]
[1773415321507,1.3914276,2163.6,2162.4,6.20132463]
[1773415321706,1.1554816,2163.6,2162.5,7.31304344]
[1773415321906,1.1554816,2163.6,2162.6,6.20132052]
[1773415322109,6.43673018,2163.4,2162.3,0.001]
[1773415322429,6.48107662,2163.3,2162.3,1.15717464]
[1773415322596,6.48107662,2163.3,2162.3,0.001]
[1773415322791,6.48107662,2163.3,2162.3,1.15717348]
[1773415322990,6.48107662,2163.3,2162.3,7.31414756]
[1773415323226,0.04434644,2163.3,2162.3,7.31414756]
[1773415323403,0.04434644,2163.4,2162.3,7.31414756]
[1773415323591,1.15564184,2163.3,2162.3,7.31414756]
[1773415324220,1.19998828,2163.3,2162.3,7.31414756]
[1773415324416,0.04434644,2163.5,2162.4,6.15697408]
[1773415325032,0.04434644,2163.5,2162.5,1.648]
[1773415325321,6.43873018,2163.7,2162.5,1.648]
[1773415325521,6.43873018,2163.7,2162.8,6.15697408]
[1773415325522,1.15743897,2163.7,2162.8,6.15697408]
[1773415325719,0.002,2163.7,2163.0,1.15580212]
[1773415326293,0.002,2163.7,2162.9,9.00702456]
[1773415326705,0.002,2163.7,2162.9,8.96079034]
[1773415327089,0.002,2163.7,2162.5,6.15697408]
[1773415327349,6.43873018,2163.7,2162.3,0.001]
[1773415327491,6.43673018,2163.5,2162.4,1.648]
[1773415327696,7.5923186,2163.4,2162.4,1.648]
[1773415328228,7.5923186,2163.4,2162.4,2.80412257]
[1773415329420,7.5923186,2163.4,2162.4,8.96109665]
[1773415330322,1.15558842,2163.4,2162.4,8.96109665]
[1773415330526,1.15558842,2163.4,2162.5,6.20321685]
[1773415330827,1.15558842,2163.4,2162.5,6.15697408]
[1773415331027,1.15558842,2163.4,2162.4,2.80412257]
[1773415331507,7.5923186,2163.4,2162.3,1.15713011]
[1773415331708,7.5923186,2163.4,2162.3,2.80613011]
[1773415332499,7.5923186,2163.4,2162.4,6.15697408]
[1773415333330,7.5923186,2163.4,2162.3,2.80613011]
[1773415333833,6.43673018,2163.2,2162.3,0.001]
[1773415334128,6.43673018,2163.2,2162.3,1.20341951]
[1773415334633,1.15574869,2163.1,2162.3,1.20341951]
[1773415335218,1.15574869,2163.1,2162.5,0.001]
[1773415336229,7.59247887,2163.1,2162.5,0.001]
[1773415337732,0.00962744,2163.0,2162.1,8.87324117]
[1773415338033,6.44635762,2163.0,2162.1,1.56002744]
[1773415338236,6.43673018,2162.9,2162.0,0.001]
[1773415339117,1.15596245,2162.7,2162.0,0.001]
[1773415339310,1.15596245,2162.7,2162.0,6.20422754]
[1773415340145,6.43673018,2162.6,2161.3,0.001]
[1773415340431,0.14948499,2162.3,2161.3,0.001]
[1773415340618,6.43673018,2162.1,2161.3,0.001]
[1773415341162,1.15639021,2161.9,2161.3,0.001]
[1773415341330,7.42327632,2161.9,2161.3,0.001]
[1773415341522,1.15639021,2161.9,2161.3,0.001]
[1773415342025,1.15639021,2161.9,2161.3,0.04726844]
[1773415342223,1.15637317,2162.0,2161.3,6.22489899]
[1773415342615,4.62494038,2162.2,2161.3,6.22489899]
[1773415342815,4.62494038,2162.2,2161.3,6.17863055]
[1773415343218,7.42322283,2162.0,2161.3,0.001]
[1773415343419,4.62492845,2162.2,2161.3,0.001]
[1773415343619,1.15614714,2162.4,2161.3,6.17863055]
[1773415343841,1.21196623,2162.5,2161.5,6.17763055]
[1773415344031,1.21196623,2162.5,2161.6,7.82663055]
[1773415344234,1.15608533,2162.5,2161.6,7.87289257]
[1773415344430,1.15600224,2162.7,2161.7,6.17763055]
[1773415344619,1.15600224,2162.7,2161.6,1.69526202]
[1773415344620,0.0558809,2162.6,2161.8,6.22388829]
[1773415344938,0.0558809,2162.6,2161.9,0.0462556]
[1773415345113,0.0558809,2162.6,2161.6,7.82663055]
[1773415345515,1.15606936,2162.5,2161.7,7.33412775]
[1773415345834,0.0558809,2162.4,2161.7,7.33412775]
[1773415346137,1.15606936,2162.5,2161.8,0.04625774]
[1773415346331,0.0558809,2162.4,2161.8,0.04625774]
[1773415347244,0.0558809,2162.4,2161.7,1.1564972]
[1773415347542,0.0558809,2162.4,2161.8,0.04625774]
[1773415347749,1.15610709,2162.5,2161.8,0.04625774]
[1773415348043,0.0558809,2162.4,2161.8,0.04625774]
[1773415348522,1.21188696,2162.7,2161.8,6.22388829]
[1773415349442,1.15600606,2162.7,2161.8,6.22388829]
[1773415349623,1.15606936,2162.5,2161.9,7.33402076]
[1773415349811,1.15606936,2162.5,2162.0,0.04725346]
[1773415350016,0.0558809,2162.4,2162.0,0.001]
[1773415351144,1.15606936,2162.5,2162.0,0.001]
[1773415351543,4.62396502,2162.7,2162.0,0.001]
[1773415351848,0.0558809,2162.6,2162.0,1.15733672]
[1773415352219,0.0558809,2162.6,2162.0,1.20359018]
[1773415352553,6.32276701,2162.6,2161.5,0.001]
[1773415352758,6.26688611,2162.4,2161.5,0.001]
[1773415352922,6.32276701,2162.3,2161.5,0.001]
[1773415353663,6.26688611,2162.1,2161.5,0.001]
[1773415353949,6.32276701,2162.1,2161.5,0.001]
[1773415354322,7.92688611,2162.0,2161.5,0.001]
[1773415355417,0.0558809,2162.1,2161.5,0.001]
[1773415355923,7.78911202,2162.0,2161.5,0.001]
[1773415356222,6.26688611,2161.8,2161.5,0.001]
[1773415357732,6.26688611,2161.8,2161.3,0.001]
[1773415358033,1.1564972,2161.7,2161.3,0.001]
[1773415361354,4.62535383,2162.0,2161.3,6.17863055]
[1773415361355,1.21231334,2161.9,2161.3,6.17863055]
[1773415361540,1.15639443,2161.9,2161.3,6.17863055]
[1773415362163,0.0558809,2162.2,2161.3,6.17863055]
[1773415362164,1.15628324,2162.1,2161.3,6.17863055]
[1773415362451,1.21214932,2162.2,2161.4,1.15665772]
[1773415362661,1.21214932,2162.2,2161.5,0.001]
[1773415363856,0.002,2162.4,2161.8,6.17763055]
[1773415364046,1.15802441,2162.6,2161.8,6.17763055]
[1773415364477,0.002,2162.6,2161.9,1.15639021]
[1773415364672,0.002,2162.6,2161.9,7.33402076]
[1773415366765,0.002,2162.6,2161.6,8.0325693]
[1773415366970,0.002,2162.6,2161.5,0.001]
[1773415366971,6.50234938,2162.5,2161.5,0.001]
[1773415367151,6.14580477,2162.1,2160.6,7.54364956]
[1773415367472,6.14580477,2161.9,2160.6,7.54364956]
[1773415367674,0.40281091,2161.8,2160.6,7.54364956]
[1773415367848,0.0462663,2161.8,2160.6,7.54364956]
[1773415368050,0.0462663,2161.8,2160.7,6.43285059]
[1773415368577,1.1564437,2161.8,2160.9,6.3865693]
[1773415368773,1.1564437,2161.8,2160.8,1.15697889]
[1773415368774,1.1564437,2161.8,2161.0,6.43284416]
[1773415368975,0.0462663,2161.8,2161.0,6.43284416]
[1773415369153,0.0462663,2161.8,2161.0,6.3865693]
[1773415369353,0.0462663,2161.8,2161.1,0.04627273]
[1773415370351,6.19207107,2161.8,2160.6,6.3865693]
[1773415370555,1.1564972,2161.7,2160.6,6.3865693]
[1773415370768,0.35655805,2161.6,2160.6,6.3865693]
[1773415371073,7.30230197,2161.7,2160.6,7.54364419]
[1773415371254,0.35657653,2161.6,2160.6,7.54364419]
[1773415371455,7.30230197,2161.7,2160.6,7.54364419]
[1773415371681,0.35646775,2161.6,2160.6,7.54364419]
[1773415371979,7.34856827,2161.7,2160.6,7.54364419]
[1773415372181,0.35654778,2161.6,2160.6,7.54364419]
[1773415372357,7.34856827,2161.7,2160.7,0.04628129]
[1773415372857,7.34856827,2161.7,2160.6,7.54364419]
[1773415373057,7.34856827,2161.7,2160.7,0.04628129]
[1773415373457,7.34856827,2161.7,2160.6,7.54364419]
[1773415374854,1.1564972,2161.7,2160.8,1.15697889]
[1773415375055,1.2027635,2161.7,2160.9,0.04627701]
[1773415375283,1.1564972,2161.7,2160.9,0.04627701]
[1773415375471,1.1584972,2161.7,2160.9,0.04627701]
[1773415375867,0.0462663,2161.6,2160.9,0.04627701]
[1773415376073,0.0462663,2161.6,2160.8,0.001]
[1773415376673,0.0462663,2161.6,2160.8,5.96761316]
[1773415376869,1.15660421,2161.5,2160.9,1.15692535]
[1773415377069,1.15660421,2161.5,2160.9,7.12353851]
[1773415377359,1.20285714,2161.6,2160.9,7.12353851]
[1773415378087,1.20285714,2161.6,2160.9,5.96661316]
[1773415378385,1.20285714,2161.6,2160.8,0.001]
[1773415378554,7.18426929,2161.6,2160.8,0.001]
[1773415378753,22.56084115,2161.3,2160.5,1.646]
[1773415378978,1.15676476,2161.2,2160.5,1.646]
[1773415379375,1.15676476,2161.2,2160.5,0.001]
[1773415380894,1.20303106,2161.2,2160.5,0.001]
[1773415381390,7.18444321,2161.2,2160.3,0.001]
[1773415381593,5.98141215,2161.0,2160.3,0.001]
[1773415381796,9.652174,2160.7,2160.3,0.001]
[1773415381996,5.98141215,2160.5,2160.0,0.0011]
[1773415382794,1.67,2160.6,2160.0,0.0011]
[1773415383092,1.15713955,2160.5,2160.0,0.0011]
[1773415384065,4.62812977,2160.8,2160.0,0.0011]
[1773415384368,10.60827342,2161.3,2160.0,5.96771316]
[1773415384589,8.375667,2161.1,2160.0,5.96771316]
[1773415384786,0.0462663,2161.0,2160.2,5.96661316]
[1773415384967,1.15681828,2161.1,2160.4,1.15719311]
[1773415385167,0.0462663,2161.0,2160.5,0.04628558]
[1773415385485,0.0462663,2161.0,2160.3,1.15720675]
[1773415385684,0.0462663,2161.0,2160.2,7.12387818]
[1773415385863,19.71935815,2160.9,2160.0,0.0011]
[1773415386068,0.0462663,2160.8,2160.0,0.0011]
[1773415386272,4.03636,2160.7,2160.0,0.0011]
[1773415386473,10.01777215,2160.7,2160.0,0.0011]
[1773415386679,1.671,2160.8,2160.0,0.0011]
[1773415386963,1.671,2160.8,2160.0,7.1714113]
[1773415386964,1.15703244,2160.7,2160.0,7.1714113]
[1773415387184,1.15703244,2160.7,2160.0,5.96771316]
[1773415387494,1.15703244,2160.7,2160.0,7.12511384]
[1773415388096,1.15676476,2161.2,2160.0,7.12511384]
[1773415388293,0.0462663,2161.1,2160.2,5.96661316]
[1773415388596,0.0462663,2161.1,2160.3,5.96661316]
[1773415388969,1.15681828,2161.1,2160.5,5.96661316]
[1773415390888,1.1565507,2161.6,2160.6,6.01289659]
[1773415391091,0.002,2161.7,2160.8,5.96661316]
[1773415391769,3.92957,2161.6,2160.8,5.96661316]
[1773415391995,2.934252,2161.6,2160.8,5.96661316]
[1773415392198,3.1524,2161.6,2160.8,5.96661316]
[1773415392403,3.1524,2161.6,2160.7,1.15703244]
[1773415392890,3.1524,2161.6,2160.3,4.6289269]
[1773415392891,5.98141215,2161.5,2160.3,4.6289269]
[1773415393203,1.15671123,2161.3,2160.4,6.01290088]
[1773415393408,1.1565507,2161.6,2160.4,6.01290088]
[1773415393885,1.1565507,2161.6,2160.4,5.96661316]
[1773415395492,0.002,2161.7,2160.6,5.96661316]
[1773415395684,0.002,2161.7,2160.8,5.96661316]
[1773415397722,0.002,2161.7,2160.9,1.15692535]
[1773415398093,0.002,2161.7,2160.9,1.20320236]
[1773415398293,0.002,2161.7,2160.8,7.12355993]
[1773415398890,0.002,2161.7,2160.8,5.96661316]
[1773415399611,5.98341215,2161.7,2160.5,5.96661316]
[1773415399792,5.98141215,2161.3,2160.4,2.79717132]
[1773415399989,7.13796285,2161.6,2160.5,5.96661316]
[1773415400193,2.825227,2161.5,2160.6,0.04628343]
[1773415400394,7.13796285,2161.6,2160.6,0.04628343]
[1773415400827,4.926824,2161.5,2160.5,5.96661316]
[1773415401125,0.002,2161.5,2160.5,5.96661316]
[1773415401625,0.002,2161.5,2160.7,6.08578045]
[1773415402330,0.002,2161.5,2160.8,0.04627915]
[1773415402491,0.002,2161.5,2160.6,1.1570461]
[1773415404643,0.002,2161.5,2160.2,0.0011]
[1773415404644,5.85228358,2161.3,2160.2,6.08688045]
[1773415404795,5.85228358,2161.2,2160.2,6.08688045]
[1773415404994,5.85428358,2161.5,2160.2,7.24417772]
[1773415405210,4.656122,2161.4,2160.4,6.08578045]
[1773415405410,5.85428358,2161.5,2160.6,6.08578045]
[1773415405795,2.157068,2161.4,2160.6,6.08578045]
[1773415405991,1.15671123,2161.3,2160.6,7.24284162]
[1773415406244,1.15671123,2161.3,2160.6,6.08578045]
[1773415406406,1.15860875,2161.5,2160.7,6.08578045]
[1773415406597,1.15860875,2161.5,2160.8,0.04627915]
[1773415406806,1.15860875,2161.5,2160.7,6.08578045]
[1773415407324,1.15860875,2161.5,2160.5,1.641]
[1773415407522,1.15860875,2161.5,2160.4,7.24297356]
[1773415407828,1.15860875,2161.5,2160.5,6.08578045]
[1773415408328,0.002,2161.5,2160.6,1.15708599]
[1773415410345,5.85228358,2161.3,2160.5,6.08578045]
[1773415410514,5.85228358,2161.3,2160.2,7.24414981]
[1773415410719,5.85228358,2161.3,2160.2,6.08688045]
[1773415411120,11.877134,2161.0,2160.2,0.0011]
[1773415411323,9.057234,2160.8,2160.2,0.0011]
[1773415411556,1.675,2161.2,2160.2,7.29045209]
[1773415411557,5.85228358,2161.2,2160.2,7.29045209]
[1773415411726,5.85228358,2161.0,2160.2,0.0011]
[1773415411914,15.28870158,2160.9,2160.2,0.0011]
[1773415412121,5.85228358,2160.8,2160.2,0.0011]
[1773415412314,1.15703244,2160.7,2160.2,0.0011]
[1773415413623,1.15687181,2161.0,2160.2,6.08688045]
[1773415413853,1.15687181,2161.0,2160.3,0.04628986]
[1773415414540,1.15687181,2161.0,2160.4,0.001]
[1773415414541,7.00915539,2161.0,2160.4,0.001]
[1773415415924,4.526219,2160.9,2160.4,0.001]
[1773415416229,5.85228358,2160.8,2160.4,0.001]
[1773415416459,1.15713955,2160.5,2160.2,0.0011]
[1773415416688,5.85228358,2160.3,2159.9,0.001]
[1773415417163,7.52928358,2160.3,2159.9,0.001]
[1773415417878,5.85228358,2160.1,2159.9,0.001]
[1773415418399,5.85228358,2159.9,2158.7,7.24388486]
[1773415418689,1.15756818,2159.7,2158.9,6.08578045]
[1773415418851,2.83535382,2160.1,2159.0,6.13209818]
[1773415420091,1.678,2160.1,2159.0,6.13209818]
[1773415420260,1.15719311,2160.4,2159.0,6.13209818]
[1773415420469,3.205,2160.7,2159.4,6.08578045]
[1773415420470,1.15708599,2160.7,2159.4,6.08578045]
[1773415420654,1.15708599,2160.7,2159.6,6.08578045]
[1773415420850,1.15708599,2160.7,2159.7,6.13208317]
[1773415421479,7.00936957,2160.7,2159.4,6.08578045]
[1773415421653,7.00936957,2160.7,2159.5,6.13208746]
[1773415421852,1.15708599,2160.7,2159.5,6.13208746]
[1773415422050,1.15708599,2160.7,2159.5,6.08578045]
[1773415422255,7.00936957,2160.7,2159.5,6.08578045]
[1773415423174,5.85228358,2160.5,2159.5,7.24343366]
[1773415424979,5.85228358,2160.5,2159.5,6.08578045]
[1773415425199,5.85228358,2160.5,2159.4,1.15770258]
[1773415425200,7.57036951,2160.3,2159.4,1.15770258]
[1773415425600,6.41312284,2160.2,2159.4,1.15770258]
[1773415426398,6.41312284,2160.2,2159.3,1.64]
[1773415426610,6.41312284,2160.2,2159.3,2.79777609]
[1773415427097,1.15735382,2160.1,2159.3,1.15777609]
[1773415427402,1.15735382,2160.1,2159.7,0.001]
[1773415427775,7.57047666,2160.1,2159.5,0.001]
[1773415428590,6.41312284,2159.9,2159.5,0.001]
[1773415428781,1.15735382,2160.1,2159.5,0.001]
[1773415428994,1.682,2160.0,2159.5,0.001]
[1773415429194,1.15746099,2159.9,2159.5,0.001]
[1773415429417,7.57058383,2159.9,2159.5,0.001]
[1773415429611,7.95028348,2159.4,2158.7,0.04632417]
[1773415429905,9.63228348,2159.4,2158.6,0.04632632]
[1773415430410,4.806,2159.6,2158.6,6.11306493]
[1773415430609,2.772691,2159.6,2158.6,6.11306493]
[1773415431111,6.41312284,2159.7,2158.6,6.11306493]
[1773415431696,1.15762178,2159.6,2158.7,7.01012731]
[1773415431897,1.15762178,2159.6,2158.8,5.89834493]
[1773415432521,1.15762178,2159.6,2158.7,1.15810441]
[1773415433026,1.15762178,2159.6,2158.5,0.0011]
[1773415433027,7.50395589,2159.2,2158.5,0.0011]
[1773415433244,5.96679525,2159.1,2158.5,0.0011]
[1773415433593,1.15794349,2159.0,2158.5,0.0011]
[1773415434028,1.15794349,2159.0,2158.3,0.04633276]
[1773415434201,1.15794349,2159.0,2158.1,1.1583847]
[1773415434399,1.15794349,2159.0,2158.0,4.63383389]
[1773415434400,16.09691189,2158.9,2157.9,7.01055372]
[1773415434649,7.770837,2158.6,2157.7,2.52550929]
[1773415434844,5.96679525,2158.4,2157.3,7.01084155]
[1773415434990,5.96679525,2158.2,2157.0,5.87460862]
[1773415435195,5.92440206,2158.2,2157.1,1.15893997]
[1773415435695,7.12522164,2158.1,2157.0,7.03359779]
[1773415435920,1.685,2158.0,2157.0,7.03359779]
[1773415436196,7.59410969,2158.0,2157.0,7.03359779]
[1773415436424,7.57930642,2158.0,2157.0,7.03359779]
[1773415436613,7.55080784,2158.0,2157.0,7.03359779]
[1773415436825,1.53716064,2157.7,2156.6,5.8520229]
[1773415436999,35.95176288,2157.5,2156.4,2.79729947]
[1773415437309,2.59596458,2157.9,2156.3,1.15937817]
[1773415437310,35.95262605,2157.3,2156.3,1.15937817]
[1773415437506,5.96679525,2157.3,2156.3,1.15937817]
[1773415437732,1.15896342,2157.1,2156.4,0.04637358]
[1773415437922,1.13083124,2157.1,2156.1,7.01152385]
[1773415438122,1.0886666,2157.1,2156.3,0.043747]
[1773415438328,26.94340025,2157.0,2156.1,1.20324795]
[1773415438629,13.43551,2156.6,2155.5,5.8520229]
[1773415438795,5.92284273,2156.7,2155.5,5.8520229]
[1773415439019,10.86370896,2156.6,2155.5,5.8520229]
[1773415439246,7.188788,2156.5,2155.5,5.8520229]
[1773415439441,5.994888,2156.4,2155.5,5.8520229]
[1773415439639,14.46445864,2156.4,2155.1,5.8520229]
[1773415439842,5.540732,2156.2,2155.2,1.20638455]
[1773415440143,1.1593934,2156.3,2155.2,1.20638455]
[1773415440348,4.52811,2156.2,2155.2,1.15998515]
[1773415440549,8.07468517,2156.8,2155.3,5.8520229]
[1773415440550,8.249074,2156.6,2155.3,5.8520229]
[1773415440722,8.249074,2156.6,2155.7,0.0011]
[1773415440919,28.16142325,2156.5,2155.7,0.0011]
[1773415441125,1.15917837,2156.7,2154.9,5.8520229]
[1773415441126,20.50403025,2156.0,2154.9,5.8520229]
[1773415441358,20.50403025,2156.0,2155.5,0.0011]
[1773415441359,29.795825,2155.9,2155.5,0.0011]
[1773415441526,2.531961,2155.9,2155.5,0.0011]
[1773415441726,1.1593934,2156.3,2155.5,0.0011]
[1773415441949,10.412859,2156.2,2155.5,0.0011]
[1773415442139,1.14491291,2156.3,2155.5,0.0011]
[1773415442460,6.027126,2156.2,2155.5,0.0011]
[1773415442639,5.306326,2156.2,2155.5,0.0011]
[1773415443450,1.13038633,2156.3,2155.5,0.0011]
[1773415443656,30.0,2156.1,2155.5,0.0011]
[1773415443860,2.66847,2155.9,2155.2,0.0011]
[1773415444030,18.26747211,2156.5,2155.3,5.8520229]
[1773415444236,4.476865,2156.4,2155.3,5.8520229]
[1773415444455,3.96258362,2156.4,2155.5,5.9364429]
[1773415444772,3.93457908,2156.4,2155.6,0.04639079]
[1773415444945,1.13143003,2156.5,2155.6,5.89841369]
[1773415445123,4.6224476,2157.0,2155.7,5.8520229]
[1773415445325,4.60795263,2157.0,2156.0,5.8520229]
[1773415445523,4.60795263,2157.0,2156.1,5.89840292]
[1773415445875,10.558387,2157.1,2156.3,1.1593934]
[1773415446028,1.15890969,2157.2,2156.3,1.1593934]
[1773415446029,1.15890969,2157.2,2156.4,5.89839646]
[1773415446484,1.46065659,2157.3,2156.4,5.89839646]
[1773415446795,1.46064188,2157.3,2156.7,0.141354]
[1773415446962,1.46064188,2157.3,2156.8,0.04636495]
[1773415447158,1.46064188,2157.3,2156.6,5.8520229]
[1773415447375,5.963158,2157.2,2156.3,1.1593934]
[1773415447694,0.30177294,2157.3,2156.3,7.0114163]
[1773415447884,1.46062991,2157.3,2156.3,7.0114163]
[1773415448096,8.631765,2157.2,2156.3,7.0114163]
[1773415448388,5.261996,2157.2,2156.2,3.66991]
[1773415448690,5.261996,2157.2,2156.2,3.66993314]
[1773415449101,5.261996,2157.2,2156.3,0.04637573]
[1773415449749,1.15896342,2157.1,2156.4,1.15933964]
[1773415450156,1.15896342,2157.1,2156.3,1.20572721]
[1773415450594,1.15896342,2157.1,2156.3,1.2057649]
[1773415450754,1.15896342,2157.1,2156.3,0.04637573]
[1773415451174,1.15896342,2157.1,2156.2,9.52196029]
[1773415451463,5.832554,2157.0,2155.7,5.8520229]
[1773415451665,18.789211,2156.7,2155.7,5.8520229]
[1773415451963,1.15923212,2156.6,2155.7,7.01172642]
[1773415452167,1.11784863,2156.6,2155.8,5.89840939]
[1773415452469,1.10378994,2156.6,2155.9,5.8520229]
[1773415452682,1.10378994,2156.6,2155.6,5.8520229]
[1773415452683,14.522503,2156.5,2155.6,5.8520229]
[1773415452851,11.94581542,2156.5,2155.6,5.8520229]
[1773415453051,11.94581542,2156.5,2155.3,5.9259079]
[1773415453248,1.0898258,2156.6,2155.4,0.073885]
[1773415453453,1.0898258,2156.6,2155.7,0.0011]
[1773415453775,1.15933964,2156.4,2155.7,0.0011]
[1773415454210,1.1453514,2156.4,2155.7,0.0011]
[1773415454410,1.10268347,2156.4,2155.7,0.0011]
[1773415454610,1.04533448,2156.4,2155.7,0.0011]
[1773415455007,8.7245284,2156.8,2155.7,5.8531229]
[1773415455198,4.6365974,2156.8,2155.9,5.9259079]
[1773415455403,1.16008738,2156.9,2156.3,0.073885]
[1773415456008,0.001,2156.9,2156.3,0.073885]